bitfinex-derivatives/quotes_ETHF0:USTF0_20240910
["timestamp","ask_amount","ask_price","bid_price","bid_amount"]
[1726004298395,1.09403909,2376.7,2376.4,0.42078]
[1726004298691,3.16199722,2376.8,2376.7,0.42073]
[1726004298692,1.52,2376.8,2376.7,0.42073]
[1726004300199,2.33618,2377.0,2376.8,0.4207]
[1726004303799,0.3955,2377.0,2376.9,0.42069]
[1726004304302,0.42067,2377.1,2376.9,0.80199]
[1726004305492,0.42065,2377.2,2377.0,0.82227]
[1726004305696,0.42065,2377.2,2377.1,0.4026]
[1726004305995,0.375,2377.5,2377.1,0.4026]
[1726004306299,10.01685778,2378.1,2377.3,2.57155]
[1726004306497,10.01685778,2378.1,2377.7,0.42054]
[1726004306498,0.42052,2377.9,2377.7,0.42054]
[1726004306999,0.3801,2378.0,2377.8,0.42052]
[1726004307201,8.65764778,2378.1,2378.0,0.4205]
[1726004307793,8.65764778,2378.1,2377.9,0.4205]
[1726004308302,8.65764778,2378.1,2378.0,0.4205]
[1726004308493,0.3801,2378.5,2378.0,5.25682]
[1726004308690,1.35878,2379.1,2378.6,0.42038]
[1726004308897,0.42031,2379.1,2378.7,40.8]
[1726004309096,0.42031,2379.1,2378.8,0.42035]
[1726004309291,0.42031,2379.1,2378.7,40.8]
[1726004309292,0.4202,2379.7,2378.7,40.8]
[1726004309498,0.3806,2379.8,2379.5,0.42022]
[1726004309806,0.80079,2379.8,2379.2,1.52]
[1726004310005,0.3806,2379.8,2379.4,1.52]
[1726004310204,0.3806,2379.8,2379.3,3.28]
[1726004310409,0.3806,2379.8,2379.5,0.42022]
[1726004310596,0.3806,2379.8,2379.3,3.28]
[1726004310904,0.42024,2379.5,2379.1,4.19709]
[1726004311101,0.42024,2379.5,2379.1,3.6788]
[1726004311411,0.42026,2379.4,2379.2,4.2032]
[1726004311703,1.05054,2379.6,2378.9,3.378]
[1726004312000,4.71105,2379.8,2378.9,3.70033]
[1726004312001,0.42027,2379.3,2378.9,3.70033]
[1726004314912,4.102,2379.7,2379.1,3.28]
[1726004315116,4.102,2379.7,2379.4,0.42024]
[1726004315408,0.42019,2379.8,2379.1,3.28]
[1726004315604,0.42019,2379.8,2379.4,0.42023]
[1726004315806,0.42019,2379.8,2379.5,40.8]
[1726004316104,0.4202,2379.7,2379.5,40.8]
[1726004316908,0.42016,2379.9,2379.5,45.0024]
[1726004317203,0.42015,2380.0,2379.6,0.4202]
[1726004317409,4.102,2380.2,2379.8,3.28]
[1726004317599,6.818,2380.5,2379.8,3.70017]
[1726004317600,1.05014,2380.5,2379.8,3.70017]
[1726004317801,0.42012,2380.2,2379.8,3.70017]
[1726004318208,1.05014,2380.5,2379.9,0.42016]
[1726004318209,0.4201,2380.3,2379.9,0.42016]
[1726004318511,1.05014,2380.5,2379.9,0.42016]
[1726004319214,0.3804,2380.7,2379.8,3.28]
[1726004319412,0.4201,2380.3,2379.9,0.42016]
[1726004320608,1.0501,2380.6,2379.9,0.42016]
[1726004320808,0.4201,2380.3,2380.0,0.42014]
[1726004321711,1.05014,2380.5,2379.8,3.28]
[1726004321917,0.3804,2380.7,2379.8,3.28]
[1726004321918,0.42008,2380.4,2379.8,3.28]
[1726004322214,0.80043,2380.7,2380.3,0.42007]
[1726004322409,0.80043,2380.7,2380.4,0.42007]
[1726004322607,0.80043,2380.7,2380.1,0.3859]
[1726004322909,0.42004,2380.6,2380.3,0.42008]
[1726004323813,0.42004,2380.6,2380.2,0.4201]
[1726004324210,0.42006,2380.5,2380.2,0.4201]
[1726004324515,0.42004,2380.6,2380.3,0.42008]
[1726004324820,0.42004,2380.6,2380.3,0.42009]
[1726004326416,0.42004,2380.6,2380.3,4.62089]
[1726004327014,0.42004,2380.6,2380.3,0.42009]
[1726004327206,0.42004,2380.6,2380.2,0.42009]
[1726004328020,0.42006,2380.5,2380.3,0.81119]
[1726004328323,0.3801,2381.2,2380.4,4.41221502]
[1726004328614,0.3801,2381.2,2381.0,0.41995]
[1726004328810,0.4199,2381.4,2381.1,41.21995]
[1726004329008,4.32961,2381.8,2381.1,41.21995]
[1726004329009,0.79998,2381.5,2381.1,40.8]
[1726004329222,0.79998,2381.5,2381.2,0.41992]
[1726004329611,0.41993,2381.2,2381.1,40.8]
[1726004329810,0.3801,2381.5,2381.1,40.8]
[1726004330322,0.41988,2381.5,2381.1,40.8]
[1726004330623,0.41989,2381.5,2381.1,41.21994]
[1726004331209,0.3801,2381.9,2381.2,3.28]
[1726004331210,0.41987,2381.6,2381.2,3.28]
[1726004331417,0.4008,2381.8,2381.2,3.69991]
[1726004332418,0.41988,2381.5,2381.2,3.69991]
[1726004333020,0.41987,2381.6,2381.3,0.41991]
[1726004333220,0.41987,2381.6,2381.2,3.69992]
[1726004333426,0.41988,2381.5,2381.2,3.69992]
[1726004334334,0.41986,2381.6,2381.3,0.41991]
[1726004334519,0.41985,2381.7,2381.3,0.4199]
[1726004334823,0.4008,2381.8,2381.3,0.4199]
[1726004334824,0.41986,2381.6,2381.3,0.4199]
[1726004335214,0.4008,2381.8,2381.3,0.4199]
[1726004335725,0.41986,2381.6,2381.3,0.4199]
[1726004336629,0.41986,2381.6,2381.4,0.4006]
[1726004337213,1.42964,2381.9,2381.2,3.6633]
[1726004337214,0.41988,2381.5,2381.2,0.3833]
[1726004337418,1.04957,2381.8,2381.1,40.8]
[1726004337823,0.3801,2381.9,2380.8,3.28]
[1726004338033,0.3801,2381.9,2380.7,0.6094]
[1726004338034,1.04985,2381.2,2380.7,0.211]
[1726004338223,0.42,2380.8,2380.5,3.6806]
[1726004338442,1.04992,2381.0,2380.5,3.6806]
[1726004338723,0.796,2381.1,2380.6,0.42004]
[1726004338924,0.42,2380.9,2380.6,40.8]
[1726004339128,0.42001,2380.8,2380.6,40.8]
[1726004340824,1.04996,2381.0,2380.5,3.70005]
[1726004340825,0.42002,2380.7,2380.5,3.28]
[1726004341129,1.04996,2381.0,2380.5,3.28]
[1726004341130,0.42004,2380.6,2380.5,3.28]
[1726004341340,0.42004,2380.6,2380.4,40.8]
[1726004341523,0.42007,2380.4,2380.3,3.28]
[1726004341723,1.05007,2380.7,2380.0,3.70013]
[1726004341724,0.42009,2380.3,2380.0,3.70013]
[1726004342325,0.3666,2380.5,2379.7,7.19984717]
[1726004342629,0.42014,2380.0,2379.8,3.28]
[1726004342931,0.42016,2379.9,2379.8,3.28]
[1726004343427,0.42016,2379.9,2379.2,0.7518]
[1726004343428,0.42021,2379.7,2379.5,3.28]
[1726004343631,0.3976,2379.8,2379.3,3.28]
[1726004344128,0.42025,2379.5,2379.3,3.28]
[1726004344330,0.42025,2379.4,2379.3,3.28]
[1726004344535,0.42025,2379.4,2379.0,0.4203]
[1726004344723,0.42027,2379.3,2379.1,3.28]
[1726004345028,0.3976,2379.8,2378.7,0.7518]
[1726004345029,1.05054,2379.6,2378.9,3.70033]
[1726004345428,0.42025,2379.4,2378.9,3.70033]
[1726004345629,0.42027,2379.3,2378.9,3.70033]
[1726004346026,0.42027,2379.3,2378.9,3.28]
[1726004346635,0.42027,2379.3,2378.9,3.70034]
[1726004346933,0.42026,2379.4,2378.9,3.70034]
[1726004347325,0.42027,2379.3,2378.9,3.28]
[1726004347830,0.42026,2379.4,2378.9,3.70033]
[1726004348422,0.42025,2379.4,2378.9,3.70033]
[1726004349331,0.42027,2379.3,2378.9,3.70033]
[1726004350730,0.42027,2379.3,2379.0,40.8]
[1726004352530,0.3976,2379.8,2379.2,3.28]
[1726004352731,0.4202,2379.7,2379.2,3.70027]
[1726004353034,0.4202,2379.7,2379.3,0.42026]
[1726004353635,0.4202,2379.7,2379.2,3.28]
[1726004353636,0.42022,2379.6,2379.2,3.70027]
[1726004353939,0.4202,2379.7,2379.2,3.28]
[1726004354131,0.42021,2379.6,2379.2,3.70027]
[1726004354644,0.42021,2379.6,2379.3,0.42026]
[1726004356739,0.42022,2379.6,2379.2,3.70027]
[1726004357237,0.42022,2379.6,2379.3,0.42027]
[1726004357437,1.05045,2379.8,2379.2,0.42028]
[1726004357438,0.42023,2379.5,2379.2,0.42028]
[1726004357640,0.79273,2379.5,2379.2,0.42028]
[1726004359939,0.3725,2379.5,2379.2,0.42028]
[1726004361246,0.79273,2379.5,2379.2,0.42028]
[1726004361837,0.3725,2379.5,2379.3,0.42027]
[1726004363153,0.42023,2379.6,2379.3,0.42027]
[1726004363747,0.42024,2379.5,2379.2,0.42028]
[1726004374845,0.42025,2379.4,2379.2,0.42028]
[1726004381855,0.42025,2379.4,2379.1,0.42029]
[1726004382261,0.42025,2379.4,2379.1,0.4203]
[1726004382565,0.42025,2379.4,2379.2,0.42028]
[1726004383263,0.42027,2379.3,2379.1,0.42029]
[1726004385464,0.42027,2379.3,2379.1,1.52361867]
[1726004387769,0.42027,2379.3,2379.2,1.10332867]
[1726004387770,1.51430909,2379.3,2379.2,1.10332867]
[1726004388468,2.06226722,2379.3,2379.2,2.90921819]
[1726004388854,2.06226722,2379.3,2379.2,3.32949819]
[1726004389056,2.06226722,2379.3,2379.2,2.77701545]
[1726004389562,0.42027,2379.3,2379.2,1.25422518]
[1726004390062,2.06679749,2379.3,2379.2,1.67450518]
[1726004390676,0.42027,2379.3,2379.2,1.67450518]
[1726004391866,0.42027,2379.3,2379.2,1.67481001]
[1726004393365,0.42027,2379.3,2379.2,2.77759855]
[1726004393565,0.42027,2379.3,2379.2,1.67481001]
[1726004393760,0.42027,2379.3,2379.2,2.77763065]
[1726004393975,0.42027,2379.3,2379.2,2.77762418]
[1726004394176,0.42027,2379.3,2379.2,1.67481001]
[1726004394379,0.42027,2379.3,2379.2,2.77761938]
[1726004394564,0.42027,2379.3,2379.2,2.77761059]
[1726004394764,0.42027,2379.3,2379.2,2.7776095]
[1726004394963,2.0668688,2379.3,2379.2,1.67481001]
[1726004395167,0.42027,2379.3,2379.2,2.35733412]
[1726004395673,2.06687149,2379.3,2379.2,2.90952302]
[1726004395966,0.42027,2379.3,2379.2,1.67481001]
[1726004396365,0.42027,2379.3,2379.2,2.77761655]
[1726004396572,0.42027,2379.3,2379.2,2.77592612]
[1726004396763,0.42027,2379.3,2379.2,1.52308654]
[1726004396960,0.42027,2379.3,2379.2,1.67310579]
[1726004397163,0.42027,2379.3,2379.2,2.35563825]
[1726004397571,0.42027,2379.3,2379.2,1.25282579]
[1726004397778,0.42027,2379.3,2379.2,2.35564261]
[1726004397972,0.42027,2379.3,2379.2,2.35564147]
[1726004398167,0.42027,2379.3,2379.2,1.25282579]
[1726004398564,0.42027,2379.3,2379.2,1.67310579]
[1726004398772,0.42027,2379.3,2379.2,1.52311065]
[1726004398967,0.42027,2379.3,2379.2,1.67310376]
[1726004399272,3.3667293,2379.4,2379.2,2.35565301]
[1726004399487,3.3667293,2379.4,2379.3,1.10282925]
[1726004399776,1.471,2379.2,2379.1,1.10282925]
[1726004400076,1.05077,2379.1,2378.9,1.10299469]
[1726004400263,0.42034,2378.9,2378.8,1.10299469]
[1726004400466,0.42035,2378.8,2378.7,1.10299469]
[1726004400666,2.61547071,2378.8,2378.7,1.10299469]
[1726004400869,2.19512071,2378.8,2378.6,42.27969469]
[1726004401068,1.64613394,2378.8,2378.7,8.62208051]
[1726004401266,1.09726536,2378.9,2378.7,16.98218713]
[1726004401468,1.64613394,2379.1,2378.9,0.42034]
[1726004401469,1.09726536,2379.0,2378.9,0.42034]
[1726004401678,1.09726536,2379.0,2378.9,4.70988798]
[1726004401968,1.09726536,2379.1,2379.0,0.42032]
[1726004402174,1.64613394,2379.2,2379.1,0.4203]
[1726004402471,1.64613394,2379.2,2379.1,2.0500875]
[1726004403071,1.64613394,2379.2,2379.1,3.70401512]
[1726004403579,1.64613394,2379.2,2379.1,2.0500875]
[1726004403871,0.3823,2379.6,2379.2,0.42028]
[1726004403872,1.64613394,2379.3,2379.2,0.42028]
[1726004404080,1.64613394,2379.3,2379.2,3.70837565]
[1726004404282,1.64613394,2379.3,2379.2,2.0545675]
[1726004405070,1.64613394,2379.4,2379.3,0.42027]
[1726004405274,1.64613394,2379.4,2379.3,3.32711032]
[1726004405468,2.19512071,2379.6,2379.3,7.11004032]
[1726004405684,2.19512071,2379.7,2379.6,0.42021]
[1726004405993,2.19512071,2379.7,2379.6,1.91988736]
[1726004407372,2.19512071,2379.8,2379.6,1.91988736]
[1726004407779,2.61530071,2379.8,2379.6,1.91988736]
[1726004408073,2.19512071,2379.7,2379.6,1.91988736]
[1726004408279,2.61530071,2379.8,2379.6,42.71988736]
[1726004408480,2.19512071,2379.8,2379.6,42.71988736]
[1726004409273,2.61530071,2379.8,2379.6,42.71988736]
[1726004411374,2.61530071,2379.8,2379.6,41.61741]
[1726004413578,1.64709337,2379.7,2379.6,43.11068736]
[1726004414686,1.64709337,2379.7,2379.6,42.00821]
[1726004418475,2.06729337,2379.7,2379.6,42.00821]
[1726004418688,1.64709337,2379.7,2379.6,42.00821]
[1726004418883,1.64709337,2379.7,2379.6,46.21061]
[1726004419089,1.64709337,2379.8,2379.7,0.4202]
[1726004419590,1.09784743,2379.8,2379.7,1.52267736]
[1726004419786,2.46405337,2379.9,2379.8,0.42018]
[1726004419988,2.06725337,2379.9,2379.7,0.42018]
[1726004420188,1.64709337,2379.8,2379.7,0.42018]
[1726004420889,2.06725337,2379.9,2379.7,0.42018]
[1726004421385,1.09763985,2379.8,2379.7,0.42018]
[1726004422092,1.09763985,2379.8,2379.7,1.93018]
[1726004422983,1.09763985,2379.8,2379.7,3.03265736]
[1726004423189,1.09763985,2379.9,2379.8,0.42018]
[1726004423389,1.09763985,2380.0,2379.9,0.42016]
[1726004423790,1.09763985,2380.0,2379.9,1.93016]
[1726004424192,2.43182337,2380.1,2380.0,0.42014]
[1726004425489,2.43182337,2380.1,2379.9,1.93015]
[1726004425797,2.43182337,2380.1,2380.0,0.42014]
[1726004427496,4.00767071,2380.3,2380.1,0.42012]
[1726004427497,1.64709337,2380.2,2380.1,0.42012]
[1726004427897,1.0967065,2380.2,2380.1,1.93012]
[1726004428197,1.0967065,2380.2,2380.1,6.52932]
[1726004428512,1.0967065,2380.3,2380.2,0.42011]
[1726004428899,1.4695065,2380.4,2380.3,0.42009]
[1726004429401,0.3728,2380.4,2380.3,0.42009]
[1726004430595,1.0967065,2380.5,2380.4,0.42007]
[1726004430788,1.5167465,2380.6,2380.4,1.93007]
[1726004431494,0.42004,2380.6,2380.4,0.42007]
[1726004431701,0.42004,2380.6,2380.4,1.93007]
[1726004433100,0.42004,2380.6,2380.4,0.42006]
[1726004433295,0.42003,2380.7,2380.5,0.79755]
[1726004433504,1.8951165,2380.8,2380.6,0.82314]
[1726004433704,1.4751065,2380.8,2380.6,0.82314]
[1726004434103,0.42002,2380.7,2380.6,0.4031]
[1726004434505,1.0967065,2380.8,2380.6,6.1139]
[1726004434699,0.3645,2380.9,2380.7,1.51]
[1726004434904,1.4885065,2381.1,2380.9,0.41998]
[1726004434905,1.5166665,2381.1,2380.9,0.41998]
[1726004435107,1.5166665,2381.1,2381.0,40.8]
[1726004435108,0.41996,2381.1,2381.0,40.8]
[1726004437603,0.41996,2381.1,2381.0,41.5701]
[1726004438903,0.78444,2381.2,2381.0,41.5701]
[1726004439304,0.78444,2381.2,2381.1,0.3777]
[1726004439812,0.78444,2381.2,2381.1,1.8877]
[1726004440503,0.78443,2381.2,2381.1,1.8877]
[1726004440706,0.3645,2381.2,2381.1,1.8877]
[1726004440904,0.41993,2381.3,2381.1,6.0877]
[1726004441099,0.41993,2381.2,2381.1,1.8877]
[1726004441303,1.04972,2381.5,2381.1,2.30765]
[1726004441304,0.41992,2381.3,2381.1,2.30765]
[1726004441807,0.41993,2381.2,2381.1,1.8877]
[1726004442201,0.41993,2381.2,2381.1,6.0877]
[1726004442807,0.41992,2381.3,2381.1,6.50764]
[1726004443011,0.41991,2381.4,2381.2,0.41993]
[1726004443207,1.04972,2381.5,2381.1,2.30764]
[1726004443208,0.41991,2381.3,2381.1,2.30764]
[1726004443412,0.41989,2381.5,2381.3,1.92991]
[1726004443812,1.17167,2381.6,2381.4,40.8]
[1726004444118,0.41988,2381.5,2381.4,40.8]
[1726004444506,0.7518,2381.6,2381.4,45.41909]
[1726004444507,0.41986,2381.6,2381.4,45.41909]
[1726004444704,0.41986,2381.6,2381.5,1.51]
[1726004450512,0.4011,2381.8,2381.5,6.12907]
[1726004450704,0.82092,2381.8,2381.7,1.51]
[1726004452309,10.5995,2381.8,2380.8,0.211]
[1726004452511,10.5995,2381.8,2381.0,1.51]
[1726004452512,0.41996,2381.1,2381.0,1.51]
[1726004452805,0.41996,2381.1,2380.8,1.51]
[1726004452806,0.41998,2380.9,2380.8,1.51]
[1726004453012,0.42002,2380.7,2380.6,1.51]
[1726004453812,0.42005,2380.5,2380.4,0.4006]
[1726004454017,1.05001,2380.8,2380.3,41.22009]
[1726004454018,0.42007,2380.4,2380.3,40.8]
[1726004454317,0.42007,2380.4,2380.3,1.51]
[1726004455319,0.42011,2380.2,2380.1,40.8]
[1726004459422,0.376,2380.4,2380.1,40.8]
[1726004459620,0.4201,2380.3,2380.1,40.8]
[1726004460621,0.376,2380.4,2380.1,40.8]
[1726004461813,0.42009,2380.3,2380.1,40.8]
[1726004462324,0.42011,2380.2,2380.1,40.8]
[1726004463319,0.4201,2380.3,2380.1,40.8]
[1726004464023,0.42011,2380.2,2380.1,40.8]
[1726004464524,0.4201,2380.3,2380.1,40.8]
[1726004468319,0.4201,2380.3,2380.1,41.1749]
[1726004474330,0.42011,2380.2,2380.1,41.1749]
[1726004474725,0.4201,2380.3,2380.1,41.1749]
[1726004474924,0.42011,2380.2,2380.1,41.1749]
[1726004475337,0.42011,2380.2,2379.8,0.3816]
[1726004475338,0.42012,2380.2,2379.8,0.80177]
[1726004475528,0.3811,2380.1,2379.8,1.19547]
[1726004475936,0.3811,2380.1,2379.9,40.8]
[1726004477235,0.80123,2380.1,2379.9,40.8]
[1726004478224,4.41503398,2380.0,2378.7,2.94732219]
[1726004478425,0.78567,2379.9,2379.3,0.7679]
[1726004478729,2.50671922,2379.9,2379.4,40.8]
[1726004479133,2.08655922,2379.9,2379.4,40.8]
[1726004479431,2.08655922,2379.9,2379.4,42.31]
[1726004479634,1.8755,2379.9,2379.4,42.31]
[1726004479832,0.3655,2379.9,2379.4,42.31]
[1726004480227,0.3655,2379.9,2379.4,41.22024]
[1726004481055,0.3655,2379.9,2379.5,3.70023]
[1726004481736,0.3655,2379.9,2379.5,3.28]
[1726004483732,0.3811,2380.1,2379.5,3.70023]
[1726004483733,0.80123,2380.1,2379.5,3.70023]
[1726004484330,0.80123,2380.1,2379.6,40.8]
[1726004484530,0.80123,2380.1,2379.7,0.3802]
[1726004484740,0.80123,2380.1,2379.8,0.3784]
[1726004484741,0.42014,2380.0,2379.8,0.3784]
[1726004487227,0.42016,2379.9,2379.8,0.3784]
[1726004488237,0.3811,2380.1,2379.8,0.3784]
[1726004488434,0.42015,2380.0,2379.8,0.3784]
[1726004490246,0.3811,2380.1,2379.8,0.3784]
[1726004490247,0.42016,2379.9,2379.8,0.3784]
[1726004495549,0.4202,2379.7,2379.6,40.8]
[1726004496345,0.7848,2379.7,2379.5,3.28]
[1726004496656,0.42021,2379.6,2379.5,3.70023]
[1726004496849,0.42021,2379.6,2379.5,44.50023]
[1726004497443,0.78481,2379.7,2379.5,44.50023]
[1726004497643,0.3646,2379.7,2379.6,0.42021]
[1726004497943,0.78481,2379.7,2379.5,44.50022]
[1726004498141,0.3646,2379.7,2379.5,44.50022]
[1726004498350,1.45644431,2379.7,2379.5,44.50022]
[1726004498655,1.87665431,2379.7,2379.5,44.50022]
[1726004500144,1.09184431,2379.6,2379.5,44.50022]
[1726004500745,1.87665431,2379.7,2379.5,44.50022]
[1726004502154,1.87665431,2379.7,2379.6,1.51]
[1726004502342,1.88278369,2379.7,2379.6,1.51]
[1726004502750,1.88280026,2379.7,2379.6,1.51]
[1726004503253,1.88278826,2379.7,2379.6,1.51]
[1726004503449,1.88275169,2379.7,2379.6,1.51]
[1726004503756,1.8827486,2379.7,2379.6,1.51]
[1726004504156,0.78481,2379.7,2379.6,1.51]
[1726004505154,1.8828757,2379.7,2379.6,1.51]
[1726004505352,1.88290341,2379.7,2379.6,1.51]
[1726004505650,1.88291472,2379.7,2379.6,1.51]
[1726004505950,0.78481,2379.7,2379.6,1.51]
[1726004507450,1.88297438,2379.7,2379.6,1.51]
[1726004508357,0.78481,2379.7,2379.6,1.51]
[1726004508655,1.88308269,2379.7,2379.6,1.51]
[1726004509657,1.88322445,2379.7,2379.6,1.51]
[1726004511648,1.88321442,2379.7,2379.6,1.51]
[1726004511848,1.88319481,2379.7,2379.6,1.51]
[1726004512052,0.78481,2379.7,2379.6,1.51]
[1726004513848,2.42257647,2379.7,2379.6,1.51]
[1726004514758,0.78481,2379.7,2379.6,1.51]
[1726004515158,2.42257647,2379.7,2379.6,1.51]
[1726004517462,2.42257647,2379.7,2379.5,42.31515887]
[1726004517763,1.09893437,2379.6,2379.5,42.31515887]
[1726004518960,1.09914198,2379.6,2379.5,42.31515887]
[1726004519161,1.63776647,2379.6,2379.5,42.31515887]
[1726004519360,1.63776647,2379.6,2379.5,43.55992674]
[1726004519569,2.00236647,2379.7,2379.6,0.42021]
[1726004519765,2.18368863,2379.8,2379.7,0.4202]
[1726004519970,0.42016,2379.9,2379.7,5.29732887]
[1726004520269,1.64895167,2379.8,2379.7,1.88080887]
[1726004520767,1.64895167,2379.8,2379.7,7.32818668]
[1726004521070,1.64895167,2379.8,2379.7,6.08320887]
[1726004521371,1.64895167,2379.8,2379.7,7.32836983]
[1726004522156,1.64895167,2379.8,2379.7,6.23344096]
[1726004522363,1.64895167,2379.8,2379.7,7.87583427]
[1726004522667,1.64985711,2379.8,2379.7,7.88690623]
[1726004524775,1.64985711,2379.8,2379.7,9.39690623]
[1726004525876,1.64985711,2379.8,2379.7,9.39574185]
[1726004531879,1.64985711,2379.8,2379.7,7.74239663]
[1726004532181,1.64985711,2379.8,2379.7,9.39574185]
[1726004533378,1.64985711,2379.8,2379.7,5.19334185]
[1726004533679,1.64985711,2379.8,2379.7,4.82764185]
[1726004533978,2.03745711,2379.8,2379.7,4.82764185]
[1726004534876,2.03745711,2379.8,2379.7,3.17429663]
[1726004535880,2.03745711,2379.8,2379.7,4.82764185]
[1726004536078,2.03745711,2379.8,2379.7,3.17429663]
[1726004536585,2.03745711,2379.8,2379.7,1.24411663]
[1726004536783,0.4202,2379.7,2379.6,1.10213377]
[1726004537585,2.62284003,2379.7,2379.6,1.10213377]
[1726004537786,2.62284003,2379.7,2379.5,41.90213377]
[1726004538787,6.0787,2379.6,2379.3,1.10213377]
[1726004539089,2.6226359,2379.5,2379.3,1.10213377]
[1726004539289,6.8012959,2379.5,2379.3,1.10213377]
[1726004539485,5.85388821,2379.4,2379.3,1.10213377]
[1726004539688,5.85389469,2379.4,2379.3,1.10213377]
[1726004541588,1.65149469,2379.4,2379.3,1.10213377]
[1726004541791,1.65149469,2379.5,2379.3,9.79924956]
[1726004542095,1.65149469,2379.5,2379.4,1.48851485]
[1726004542483,1.65149469,2379.5,2379.4,5.69091485]
[1726004544490,1.65149469,2379.5,2379.4,46.49091485]
[1726004545404,1.65149469,2379.5,2379.4,41.1867]
[1726004545893,1.65149469,2379.5,2379.4,42.28851485]
[1726004546095,1.65149469,2379.5,2379.4,41.1867]
[1726004548608,1.09941453,2379.5,2379.4,42.28851485]
[1726004549003,1.09941453,2379.5,2379.4,43.53163599]
[1726004549303,1.09941453,2379.5,2379.4,42.28851485]
[1726004549508,2.07170469,2379.6,2379.4,42.28851485]
[1726004550404,1.65149469,2379.5,2379.4,42.28851485]
[1726004550608,2.07170469,2379.6,2379.4,42.28851485]
[1726004551112,1.65149469,2379.6,2379.4,42.28851485]
[1726004551310,1.65149469,2379.5,2379.4,41.1867]
[1726004551513,1.65149469,2379.6,2379.5,0.42023]
[1726004552204,1.65149469,2379.6,2379.5,41.22023]
[1726004552606,1.65149469,2379.6,2379.5,42.73023]
[1726004552809,1.65149469,2379.6,2379.5,43.83204485]
[1726004553110,1.65149469,2379.7,2379.6,0.42021]
[1726004553317,1.64901037,2379.7,2379.6,0.42021]
[1726004553513,2.9925959,2379.8,2379.6,0.42021]
[1726004553818,1.64900634,2379.7,2379.6,0.4202]
[1726004559325,2.05160634,2379.8,2379.7,0.4202]
[1726004559627,2.05160634,2379.8,2379.7,0.7997]
[1726004559816,2.05160634,2379.8,2379.7,1.1709]
[1726004560521,2.05160634,2379.8,2379.7,2.27271485]
[1726004560722,2.05160634,2379.8,2379.7,1.1709]
[1726004562013,0.4026,2379.8,2379.7,2.27271485]
[1726004562416,1.50186254,2379.8,2379.7,2.27271485]
[1726004563419,1.50185269,2379.8,2379.7,2.27271485]
[1726004565122,1.50185269,2379.8,2379.7,1.52201485]
[1726004566726,1.50182242,2379.8,2379.7,1.52201485]
[1726004569228,0.4026,2379.8,2379.7,0.4202]
[1726004571930,0.4026,2379.8,2379.7,1.52201485]
[1726004572521,2.05160634,2379.8,2379.7,0.4202]
[1726004572732,0.4026,2379.8,2379.7,0.4202]
[1726004572931,0.4026,2379.8,2379.7,1.52201485]
[1726004573526,0.4026,2379.8,2379.7,0.4202]
[1726004573829,0.4026,2379.8,2379.7,1.52201485]
[1726004574224,1.50232779,2379.8,2379.7,1.52201485]
[1726004574621,0.4026,2379.8,2379.7,1.52201485]
[1726004575329,1.50259556,2379.8,2379.7,1.52201485]
[1726004575732,0.4026,2379.8,2379.7,1.52201485]
[1726004576130,2.05160634,2379.8,2379.7,1.52201485]
[1726004578534,2.05160634,2379.8,2379.7,0.4202]
[1726004578835,2.05160634,2379.8,2379.7,1.52201485]
[1726004584340,1.50272457,2379.8,2379.7,1.52201485]
[1726004585341,2.05160634,2379.8,2379.7,1.52201485]
[1726004593338,2.05160634,2379.8,2379.7,2.76564401]
[1726004593547,2.05160634,2379.8,2379.7,1.52201485]
[1726004594347,2.05160634,2379.8,2379.7,2.7656608]
[1726004596142,2.05160634,2379.8,2379.7,2.76588421]
[1726004596447,0.4026,2379.8,2379.7,1.66406936]
[1726004597141,2.05454561,2379.8,2379.7,1.66406936]
[1726004597349,0.4026,2379.8,2379.7,3.31741458]
[1726004598743,2.2023959,2379.9,2379.8,0.42018]
[1726004599056,0.3862,2379.9,2379.8,3.31783586]
[1726004599535,2.03879367,2379.9,2379.8,3.31783586]
[1726004601148,2.03879367,2379.9,2379.8,3.31779371]
[1726004603446,2.0385084,2379.9,2379.8,3.31779371]
[1726004604042,0.3862,2379.9,2379.8,3.31779371]
[1726004604348,2.03840861,2379.9,2379.8,3.31779371]
[1726004605246,0.3862,2379.9,2379.8,3.31779371]
[1726004606155,0.3862,2379.9,2379.8,3.31796016]
[1726004610854,2.5885959,2379.9,2379.8,3.31796016]
[1726004611151,2.5885959,2379.9,2379.8,2.76715438]
[1726004612748,6.7901959,2379.9,2379.8,1.52277244]
[1726004614554,6.7901959,2379.9,2379.8,42.32277244]
[1726004614958,2.5885959,2379.9,2379.8,42.32277244]
[1726004617456,0.80636,2379.9,2379.8,42.32277244]
[1726004617751,0.3862,2379.9,2379.8,42.32277244]
[1726004618459,0.80636,2379.9,2379.8,42.32277244]
[1726004618960,0.3862,2379.9,2379.8,42.32277244]
[1726004619356,0.80636,2379.9,2379.8,42.32277244]
[1726004626553,0.80636,2379.9,2379.8,42.72047244]
[1726004627657,0.42016,2379.9,2379.8,42.72047244]
[1726004627864,0.42016,2379.9,2379.8,42.72045244]
[1726004628761,0.78296,2379.9,2379.8,42.72045244]
[1726004630962,0.3628,2379.9,2379.8,1.92045244]
[1726004631565,0.3628,2379.9,2379.8,42.72045244]
[1726004631959,0.78296,2379.9,2379.8,42.72045244]
[1726004633353,0.3628,2379.9,2379.8,42.72045244]
[1726004633566,3.16991185,2380.0,2379.9,0.42016]
[1726004633764,3.16991185,2380.0,2379.9,0.3893]
[1726004633957,7.37151185,2380.0,2379.9,0.7903]
[1726004634158,4.2016,2380.0,2379.9,2.31305244]
[1726004634572,2.20437882,2380.0,2379.9,2.31305244]
[1726004635463,3.16989185,2380.1,2379.9,2.31305244]
[1726004635766,2.20438456,2380.0,2379.9,2.31305244]
[1726004635960,3.16989185,2380.1,2379.9,2.31305244]
[1726004636359,2.20436695,2380.0,2379.9,2.31305244]
[1726004638269,2.20436695,2380.0,2379.9,1.89289244]